bitfinex/quotes_BTCUSD_20251207
["timestamp","ask_amount","ask_price","bid_price","bid_amount"]
[1765147661084,1e-08,90220.0,90219.0,0.29302566]
[1765147661281,1e-08,90220.0,90219.0,0.25629566]
[1765147661526,1e-08,90220.0,90219.0,0.31881865]
[1765147661659,1e-08,90220.0,90219.0,0.25629566]
[1765147661871,1e-08,90220.0,90219.0,0.22329566]
[1765147662086,1e-08,90220.0,90219.0,0.23129566]
[1765147662289,0.03594001,90220.0,90219.0,0.22968279]
[1765147662464,0.09157001,90220.0,90219.0,0.22968279]
[1765147662680,0.03594001,90220.0,90219.0,0.22168279]
[1765147662902,0.03794001,90220.0,90219.0,0.22168279]
[1765147663128,0.03838803,90220.0,90219.0,0.22168279]
[1765147663305,0.03638803,90220.0,90219.0,0.24068279]
[1765147663516,0.03638803,90220.0,90219.0,0.28420578]
[1765147663682,0.00344803,90220.0,90219.0,0.28420578]
[1765147664593,0.00344803,90220.0,90219.0,0.32198865]
[1765147664769,0.00044803,90220.0,90219.0,0.37363865]
[1765147664969,0.00044803,90220.0,90219.0,0.69663865]
[1765147665340,0.00244803,90220.0,90219.0,0.71884263]
[1765147665712,0.00044803,90220.0,90219.0,0.71884263]
[1765147665913,0.00044803,90220.0,90219.0,0.72484263]
[1765147666498,0.00044803,90220.0,90219.0,0.75648263]
[1765147666702,0.00044803,90220.0,90219.0,0.75048263]
[1765147666900,0.00044803,90220.0,90219.0,0.73648263]
[1765147667101,0.00044803,90220.0,90219.0,0.75848263]
[1765147667307,0.00044803,90220.0,90219.0,0.73627865]
[1765147667704,0.00044803,90220.0,90219.0,0.56829566]
[1765147667941,0.00044803,90220.0,90219.0,0.55529566]
[1765147668201,0.00044803,90220.0,90219.0,0.63981865]
[1765147668407,0.00044803,90220.0,90219.0,0.25429566]
[1765147668564,0.00044803,90220.0,90219.0,0.24529566]
[1765147668764,0.00044803,90220.0,90219.0,0.25229566]
[1765147668967,0.00044803,90220.0,90219.0,0.31481865]
[1765147669167,0.00044803,90220.0,90219.0,0.24529566]
[1765147669333,0.00044803,90220.0,90219.0,0.22329566]
[1765147669534,0.00044803,90220.0,90219.0,0.28581865]
[1765147669752,0.00044803,90220.0,90219.0,0.30381865]
[1765147669959,0.00044803,90220.0,90219.0,0.28581865]
[1765147670158,0.00144803,90220.0,90219.0,0.28581865]
[1765147671241,0.00044803,90220.0,90219.0,0.28581865]
[1765147671644,0.03838803,90220.0,90219.0,0.28581865]
[1765147671851,0.00244803,90220.0,90219.0,0.28581865]
[1765147672254,0.00244803,90220.0,90219.0,0.28420578]
[1765147674105,0.03838803,90220.0,90219.0,0.28420578]
[1765147674821,0.09401803,90220.0,90219.0,0.28420578]
[1765147675017,0.06469803,90220.0,90219.0,0.28420578]
[1765147675853,0.12032803,90220.0,90219.0,0.28420578]
[1765147676860,0.06469803,90220.0,90219.0,0.28420578]
[1765147677736,0.00244803,90220.0,90219.0,0.28420578]
[1765147677886,0.00244803,90220.0,90219.0,0.43150577]
[1765147681059,0.08776803,90220.0,90219.0,0.20982298]
[1765147681254,0.12355958,90220.0,90200.0,0.01108647]
[1765147681464,0.02561,90208.0,90205.0,0.01108585]
[1765147681892,0.03314,90206.0,90205.0,0.23280304]
[1765147682218,0.03314,90206.0,90205.0,0.01108585]
[1765147682426,0.03314,90206.0,90205.0,0.07360884]
[1765147682631,0.08532,90206.0,90205.0,0.07360884]
[1765147683189,0.08532,90206.0,90195.0,0.22174049]
[1765147683190,0.01108585,90205.0,90200.0,0.01108647]
[1765147683398,0.01108585,90205.0,90192.0,0.03954234]
[1765147683399,0.01108868,90182.0,90179.0,0.03954234]
[1765147683556,0.01108979,90173.0,90168.0,0.0110904]
[1765147683760,0.01108954,90175.0,90167.0,0.01109053]
[1765147684031,0.07779,90174.0,90167.0,0.01109053]
[1765147684209,0.08887967,90174.0,90169.0,0.01109028]
[1765147684408,0.08887967,90174.0,90160.0,0.01109139]
[1765147684409,0.0110909,90164.0,90160.0,0.01109139]
[1765147684684,0.05875,90161.0,90160.0,0.0114849]
[1765147685131,0.11093,90161.0,90160.0,0.0114849]
[1765147685339,0.02561,90161.0,90160.0,0.0114849]
[1765147685587,0.06327016,90170.0,90166.0,0.01109065]
[1765147685800,0.003,90182.0,90172.0,0.06252299]
[1765147685801,0.02561,90174.0,90172.0,0.06252299]
[1765147686018,0.01108733,90193.0,90174.0,0.06252299]
[1765147686219,0.02561,90194.0,90174.0,0.42878522]
[1765147686450,0.02561,90194.0,90174.0,0.47000586]
[1765147686679,0.01108745,90192.0,90174.0,0.47000586]
[1765147686907,0.01108733,90193.0,90190.0,0.06252299]
[1765147687256,0.02561,90194.0,90192.0,0.06252299]
[1765147687635,0.03669721,90194.0,90191.0,0.06252299]
[1765147688050,0.003,90193.0,90192.0,0.06252299]
[1765147688254,0.003,90193.0,90191.0,0.01148109]
[1765147688468,0.02561,90194.0,90192.0,0.06252299]
[1765147688890,0.03061,90194.0,90192.0,0.06252299]
[1765147689294,0.02861,90194.0,90192.0,0.06252299]
[1765147689485,0.03314,90193.0,90192.0,0.06252299]
[1765147690318,0.08532,90193.0,90191.0,0.0629165]
[1765147690671,0.03314,90192.0,90191.0,0.0629165]
[1765147691671,0.08532,90192.0,90191.0,0.0629165]
[1765147691965,0.03614,90192.0,90191.0,0.00039351]
[1765147692149,0.03714,90192.0,90191.0,0.00039351]
[1765147694112,0.03714,90192.0,90191.0,0.21021649]
[1765147695342,0.08724,90192.0,90191.0,0.21021649]
[1765147697604,0.10944,90192.0,90191.0,0.1476935]
[1765147697767,0.08724,90192.0,90191.0,0.1476935]
[1765147697943,0.19501081,90192.0,90191.0,0.1476935]
[1765147698148,0.50434381,90192.0,90191.0,0.1476935]
[1765147698689,0.50434381,90192.0,90191.0,0.00039351]
[1765147699539,0.418773,90192.0,90191.0,0.00039351]
[1765147700177,0.741773,90192.0,90191.0,0.00039351]
[1765147701021,0.737773,90192.0,90191.0,0.00039351]
[1765147701431,0.745773,90192.0,90191.0,0.00039351]
[1765147702195,0.750773,90192.0,90191.0,0.00039351]
[1765147702374,0.86047806,90192.0,90191.0,0.00039351]
[1765147702800,0.01109151,90159.0,90156.0,0.01109188]
[1765147702962,0.0538,90157.0,90156.0,5.235e-05]
[1765147703525,0.1039,90157.0,90156.0,5.235e-05]
[1765147704048,0.1039,90157.0,90156.0,0.00305235]
[1765147704421,0.1039,90157.0,90156.0,0.01805235]
[1765147704567,0.1039,90157.0,90156.0,0.00305235]
[1765147705010,0.1039,90157.0,90156.0,0.02705235]
[1765147705211,0.1039,90157.0,90156.0,0.02405235]
[1765147705669,0.1261,90157.0,90156.0,0.03005235]
[1765147706106,0.20924098,90157.0,90156.0,0.03005235]
[1765147706516,0.20924098,90157.0,90156.0,0.02405235]
[1765147706692,0.21124098,90157.0,90156.0,0.02405235]
[1765147706939,0.1281,90157.0,90156.0,0.02405235]
[1765147707520,0.1281,90157.0,90156.0,5.235e-05]
[1765147708962,0.1281,90157.0,90130.0,0.0027087]
[1765147708963,0.22189923,90131.0,90130.0,0.0027087]
[1765147709188,0.28006923,90131.0,90130.0,0.00276105]
[1765147709411,0.35236923,90131.0,90130.0,0.00276105]
[1765147710125,0.35236923,90131.0,90130.0,0.01076105]
[1765147710440,0.4607812,90131.0,90130.0,0.01076105]
[1765147710910,0.35236923,90131.0,90130.0,0.01076105]
[1765147711416,0.35236923,90131.0,90130.0,0.00276105]
[1765147711603,0.35436923,90131.0,90130.0,0.00276105]
[1765147712131,0.35636923,90131.0,90130.0,0.00276105]
[1765147712492,0.35936923,90131.0,90130.0,0.00276105]
[1765147712697,0.4684812,90131.0,90130.0,0.00276105]
[1765147714209,0.4684812,90131.0,90130.0,1.05e-06]
[1765147714432,1.53240385,90121.0,90120.0,0.0004]
[1765147714639,1.59250385,90121.0,90120.0,0.00051801]
[1765147714847,1.69650963,90121.0,90120.0,0.00051801]
[1765147715774,1.64260385,90121.0,90120.0,0.00051801]
[1765147716353,1.64760385,90121.0,90120.0,0.00051801]
[1765147716987,1.65360385,90121.0,90120.0,0.00051801]
[1765147717292,1.65360385,90121.0,90088.0,0.01110025]
[1765147717293,0.24417311,90101.0,90088.0,0.01110025]
[1765147717478,0.32191311,90101.0,90100.0,0.00051804]
[1765147717772,0.37201311,90101.0,90100.0,0.00051804]
[1765147718543,0.37301311,90101.0,90100.0,0.00051804]
[1765147719171,0.37301311,90101.0,90100.0,0.00451804]
[1765147720350,0.37301311,90101.0,90100.0,0.00541572]
[1765147720873,0.01864,90101.0,90100.0,0.06955158]
[1765147722325,0.001,90101.0,90100.0,0.14840158]
[1765147722709,0.001,90101.0,90100.0,0.10352158]
[1765147723272,0.001,90101.0,90100.0,0.09952158]
[1765147723481,0.01109754,90110.0,90100.0,0.09952158]
[1765147723482,0.01109742,90111.0,90109.0,0.06252299]
[1765147723682,0.01109717,90113.0,90109.0,0.06252299]
[1765147723880,0.01109742,90111.0,90110.0,0.00059839]
[1765147724518,0.01209742,90111.0,90110.0,0.00059839]
[1765147724732,0.001,90111.0,90110.0,0.00059839]
[1765147725136,0.23304332,90112.0,90110.0,0.00059839]
[1765147725336,0.23304332,90112.0,90111.0,0.06252299]
[1765147725752,0.26554332,90112.0,90111.0,0.06252299]
[1765147726308,0.26554332,90112.0,90104.0,0.01109828]
[1765147726309,0.24417311,90101.0,90100.0,0.00051804]
[1765147726508,0.64802311,90101.0,90100.0,0.00051804]
[1765147727415,0.64802311,90101.0,90100.0,0.00151804]
[1765147727613,0.64802311,90101.0,90100.0,0.00051804]
[1765147727816,0.65002311,90101.0,90100.0,0.00051804]
[1765147728035,0.65302311,90101.0,90100.0,0.00051804]
[1765147728237,0.43105,90101.0,90100.0,0.00051804]
[1765147728768,0.65302311,90101.0,90100.0,0.00051804]
[1765147729484,0.65002311,90101.0,90100.0,0.00051804]
[1765147729721,0.64802311,90101.0,90100.0,0.00051804]
[1765147729923,0.64902311,90101.0,90100.0,0.00051804]
[1765147730123,0.75972817,90101.0,90100.0,0.00051804]
[1765147732233,0.65002311,90101.0,90100.0,0.00051804]
[1765147732642,0.65002311,90101.0,90100.0,0.00141572]
[1765147734038,1.08072511,90101.0,90100.0,0.00141572]
[1765147737006,1.03177111,90101.0,90100.0,0.00141572]
[1765147737209,1.01261111,90101.0,90100.0,0.00141572]
[1765147737446,0.95820011,90101.0,90100.0,0.00141572]
[1765147738267,1.06790517,90101.0,90100.0,0.00141572]
[1765147739780,1.06790517,90101.0,90061.0,0.03954234]
[1765147739781,0.0222,90066.0,90065.0,0.01110309]
[1765147739984,0.22205691,90067.0,90065.0,0.00039376]
[1765147740188,0.03236,90066.0,90065.0,0.00039376]
[1765147740350,0.03236,90066.0,90065.0,0.06396464]
[1765147740554,0.10447,90066.0,90065.0,0.00144165]
[1765147740979,0.10447,90066.0,90065.0,0.02844165]
[1765147741389,0.03495272,90068.0,90065.0,0.02844165]
[1765147741569,0.03495272,90068.0,90065.0,0.03849685]
[1765147741570,0.02385,90068.0,90065.0,0.03849685]
[1765147741777,0.03236,90066.0,90065.0,0.02739376]
[1765147742177,0.03236,90066.0,90065.0,0.00039376]
[1765147742178,0.08227,90066.0,90065.0,0.00039376]
[1765147742380,0.10447,90066.0,90065.0,0.00239376]
[1765147743192,0.10447,90066.0,90065.0,0.00039376]
[1765147743549,0.10447,90066.0,90065.0,0.00139376]
[1765147743550,0.38821326,90066.0,90065.0,0.00139376]
[1765147744515,0.71121326,90066.0,90065.0,0.00139376]
[1765147744718,0.85184726,90066.0,90065.0,0.00139376]
[1765147745128,0.85184726,90066.0,90065.0,0.00039376]
[1765147745324,0.85384726,90066.0,90065.0,0.00039376]
[1765147745537,0.85684726,90066.0,90065.0,0.00039376]
[1765147745737,0.85684726,90066.0,90065.0,3.76e-06]
[1765147746393,0.0222,90041.0,90040.0,0.0004]
[1765147746595,0.12832,90041.0,90040.0,0.0005179]
[1765147748702,0.12832,90041.0,90040.0,0.0015179]
[1765147748909,0.12832,90041.0,90040.0,0.0005179]
[1765147749107,0.12832,90041.0,90040.0,0.00231478]
[1765147749336,0.12932,90041.0,90040.0,0.00231478]
[1765147749610,0.18555867,90041.0,90040.0,0.00231478]
[1765147749826,0.18655867,90041.0,90040.0,0.00231478]
[1765147750043,0.18855867,90041.0,90040.0,0.00231478]
[1765147750460,0.33151367,90041.0,90040.0,0.00231478]
[1765147752248,0.65451367,90041.0,90040.0,0.00231478]
[1765147752995,0.65251367,90041.0,90040.0,0.00231478]
[1765147753174,0.65051367,90041.0,90040.0,0.00231478]
[1765147754421,0.66151367,90041.0,90040.0,0.00231478]
[1765147754789,0.65451367,90041.0,90040.0,0.00231478]
[1765147754991,0.66551367,90041.0,90040.0,0.00231478]
[1765147755372,0.65451367,90041.0,90040.0,0.00231478]
[1765147755571,0.66151367,90041.0,90040.0,0.00231478]
[1765147756415,0.66151367,90041.0,90001.0,0.22221747]
[1765147756416,0.0222,90003.0,90002.0,0.06252299]
[1765147756615,0.0222,90003.0,90002.0,0.06264116]
[1765147756988,0.0222,90003.0,90002.0,0.00125705]
[1765147756989,0.12455,90003.0,90002.0,0.00125705]
[1765147757549,0.12455,90003.0,90002.0,0.00325705]
[1765147758280,0.12455,90003.0,90002.0,0.01225705]
[1765147759103,0.10235,90003.0,90002.0,0.01225705]
[1765147759294,0.10235,90003.0,90002.0,0.00125705]
[1765147759922,0.02327,90003.0,90002.0,0.00125705]
[1765147760208,0.22221234,90004.0,90002.0,0.00125705]
[1765147760410,0.22221234,90004.0,90002.0,0.00011817]
[1765147760604,0.22221234,90004.0,90003.0,0.00110889]
[1765147761361,0.22221234,90004.0,90003.0,0.01776889]
[1765147761748,0.22221234,90004.0,90003.0,0.02276889]
[1765147762220,0.22221234,90004.0,90003.0,0.02438176]
[1765147762408,0.23331777,90006.0,90003.0,0.02438176]
[1765147762718,0.23331777,90006.0,90003.0,0.02327287]
[1765147762918,0.22221234,90004.0,90003.0,0.02327287]
[1765147763581,0.22221234,90004.0,90003.0,0.01827287]
[1765147763713,0.01211037,90006.0,90003.0,0.01827287]
[1765147763918,0.01211037,90006.0,90003.0,0.02227287]
[1765147764146,0.01111037,90006.0,90003.0,0.01827287]
[1765147764350,0.01111037,90006.0,90003.0,0.02327287]
[1765147764626,0.01111037,90006.0,90003.0,0.01827287]
[1765147765053,0.01111037,90006.0,90003.0,0.02227287]
[1765147765222,0.01211037,90006.0,90003.0,0.02227287]
[1765147767097,0.001,90006.0,90003.0,0.25559814]
[1765147767340,0.03059,90004.0,90003.0,0.23893814]
[1765147768019,0.05279,90004.0,90003.0,0.004]
[1765147768235,0.05279,90004.0,90002.0,0.01122903]
[1765147768236,0.07908,90004.0,90002.0,0.01122903]
[1765147768420,0.05279,90003.0,90002.0,0.01122903]
[1765147768628,0.10128,90003.0,90002.0,0.00011817]
[1765147768827,0.02327,90005.0,90002.0,0.0128419]
[1765147768981,0.01764,90008.0,90007.0,0.28472792]
[1765147769168,0.01110814,90024.0,90021.0,0.06252299]
[1765147769364,0.27063696,90031.0,90021.0,0.06252299]
[1765147769365,0.05201753,90029.0,90026.0,0.0111079]
[1765147769646,0.05201753,90029.0,90025.0,0.01110802]
[1765147769805,0.05201753,90029.0,90024.0,0.01110814]
[1765147769806,0.05279,90026.0,90024.0,0.01110814]
[1765147770151,0.03059,90025.0,90024.0,0.22216297]
[1765147770491,0.0222,90026.0,90024.0,0.22216297]
[1765147770706,0.0222,90026.0,90025.0,0.001]
[1765147770900,0.05301753,90029.0,90028.0,0.06252299]
[1765147770901,0.04191,90029.0,90028.0,0.06252299]
[1765147771104,0.01764,90029.0,90028.0,0.06413586]
[1765147771352,0.01764,90029.0,90028.0,0.09533586]
[1765147771559,0.01764,90029.0,90028.0,0.13912586]
[1765147772492,0.04849,90046.0,90038.0,0.06252299]
[1765147772674,0.01764,90042.0,90038.0,0.06252299]
[1765147772857,0.01764,90042.0,90039.0,0.28464895]
[1765147773178,0.01764,90042.0,90041.0,0.28464402]
[1765147773534,0.02327,90045.0,90044.0,0.06252299]
[1765147774741,0.05386,90045.0,90044.0,0.06852299]
[1765147774948,0.55386,90045.0,90044.0,0.06852299]
[1765147775771,0.60235,90045.0,90044.0,0.06852299]
[1765147775949,1.10235,90045.0,90044.0,0.06952299]
[1765147776617,1.0,90045.0,90044.0,0.06952299]
[1765147777520,1.0,90045.0,90044.0,0.10233586]
[1765147777810,1.0,90045.0,90044.0,0.14612586]
[1765147780551,1.0,90045.0,90044.0,0.14012586]
[1765147781092,1.0,90045.0,90044.0,0.16212586]
[1765147781291,1.0,90045.0,90044.0,0.52436107]
[1765147781766,1.0,90045.0,90044.0,0.52336107]
[1765147782063,1.001,90045.0,90044.0,0.53136107]
[1765147782305,1.001,90045.0,90044.0,0.50936107]
[1765147782724,1.001,90045.0,90044.0,0.53836107]
[1765147782871,1.0,90045.0,90044.0,0.53036107]
[1765147783267,1.001,90045.0,90044.0,0.54236107]
[1765147784966,1.001,90045.0,90044.0,0.68966106]
[1765147785115,1.001,90045.0,90044.0,0.54236107]
[1765147785876,1.001,90045.0,90044.0,0.56455107]
[1765147786317,1.001,90045.0,90044.0,0.07381287]
[1765147786530,1.03052,90045.0,90044.0,0.041]
[1765147786932,1.183216,90045.0,90044.0,0.041]
[1765147787137,1.42752716,90045.0,90044.0,0.041]
[1765147787554,1.31998116,90045.0,90044.0,0.041]
[1765147788166,1.31898116,90045.0,90044.0,0.029]
[1765147788369,0.24431856,90042.0,90041.0,0.00011817]
[1765147788620,0.27462856,90042.0,90041.0,0.00011817]
[1765147788770,0.32049856,90042.0,90041.0,0.00011817]
[1765147790043,0.32249856,90042.0,90041.0,0.00011817]
[1765147790391,0.43220362,90042.0,90041.0,0.00011817]
[1765147791034,0.32249856,90042.0,90041.0,0.00011817]
[1765147792102,0.33249856,90042.0,90041.0,0.00011817]
[1765147793515,0.33049856,90042.0,90041.0,0.00011817]
[1765147794930,0.33149856,90042.0,90041.0,0.00011817]
[1765147795535,0.33149856,90042.0,90041.0,0.06425403]
[1765147795536,0.011,90042.0,90041.0,0.06425403]
[1765147795975,0.011,90042.0,90041.0,0.09381403]
[1765147796177,0.011,90042.0,90041.0,0.13403403]
[1765147796390,0.01,90042.0,90041.0,0.13403403]
[1765147798218,0.01,90042.0,90041.0,0.13903403]
[1765147798515,0.14131,90042.0,90041.0,0.06925403]
[1765147799038,0.04031,90042.0,90041.0,0.06425403]
[1765147799265,0.011,90042.0,90041.0,0.07425403]
[1765147799738,0.01,90042.0,90041.0,0.06425403]
[1765147800391,0.01,90042.0,90041.0,0.28637506]
[1765147800999,0.03936,90042.0,90041.0,0.00011817]
[1765147801242,0.17561425,90042.0,90041.0,0.00011817]
[1765147801460,0.17561425,90042.0,90041.0,0.00111817]
[1765147801989,0.10779,90042.0,90041.0,0.00111817]
[1765147802162,0.01,90042.0,90041.0,0.00111817]
[1765147802621,0.08559,90042.0,90041.0,0.00111817]
[1765147803875,0.03936,90042.0,90041.0,0.00111817]
[1765147804075,0.08559,90042.0,90041.0,0.00111817]
[1765147804938,0.01,90042.0,90041.0,0.00111817]
[1765147805337,0.01,90042.0,90041.0,0.06364116]
[1765147805536,0.01,90042.0,90041.0,0.09351403]
[1765147805764,0.01,90042.0,90041.0,0.24081402]
[1765147807898,0.01,90042.0,90041.0,0.27978402]
[1765147808447,0.01,90042.0,90041.0,0.60278402]
[1765147810086,0.01,90042.0,90041.0,0.60178402]
[1765147810306,0.011,90042.0,90041.0,0.61178402]
[1765147810857,0.011,90042.0,90041.0,0.61578402]
[1765147816287,0.001,90042.0,90041.0,0.61578402]
[1765147817683,1.0,90045.0,90044.0,0.75393661]
[1765147818022,1.0,90045.0,90044.0,0.78627948]
[1765147818222,1.0,90045.0,90044.0,0.82419948]
[1765147818856,1.0,90045.0,90044.0,0.82719948]
[1765147819059,1.0,90045.0,90044.0,0.78927948]
[1765147819217,1.001,90045.0,90044.0,0.79827948]
[1765147820018,1.001,90045.0,90044.0,0.83619948]
[1765147822871,1.001,90045.0,90044.0,0.79827948]
[1765147823107,1.001,90045.0,90044.0,0.76754948]
[1765147823899,1.001,90045.0,90044.0,0.70502649]
[1765147824072,1.03074,90045.0,90044.0,0.38041362]
[1765147824476,1.03074,90045.0,90044.0,0.44293661]
[1765147826628,1.001,90045.0,90044.0,0.44293661]
[1765147832852,1.07384,90045.0,90044.0,0.44293661]
[1765147833056,1.07384,90045.0,90044.0,0.43793661]
[1765147833665,1.03074,90045.0,90044.0,0.43493661]
[1765147834616,1.02974,90045.0,90044.0,0.42593661]
[1765147835025,1.02974,90045.0,90044.0,0.42693661]
[1765147835227,1.0,90045.0,90044.0,0.42693661]
[1765147835782,1.01,90045.0,90044.0,0.42693661]
[1765147843706,1.01,90045.0,90044.0,0.45594948]
[1765147843907,0.86870001,90045.0,90044.0,0.71266928]
[1765147844108,0.86870001,90045.0,90044.0,0.67296949]
[1765147844344,0.86870001,90045.0,90044.0,0.75448699]
[1765147844721,0.86870001,90045.0,90044.0,0.69417347]
[1765147845036,0.86970001,90045.0,90044.0,0.70417347]
[1765147845498,0.86970001,90045.0,90044.0,0.69417347]
[1765147845499,0.86870001,90045.0,90044.0,0.69417347]
[1765147845839,0.86870001,90045.0,90044.0,0.69717347]
[1765147846231,0.86870001,90045.0,90044.0,0.69417347]
[1765147846396,0.86870001,90045.0,90044.0,0.70317347]
[1765147846857,0.86970001,90045.0,90044.0,0.71417347]
[1765147847029,0.86970001,90045.0,90044.0,0.88366347]
[1765147847174,0.86870001,90045.0,90044.0,0.87266347]
[1765147847686,0.86970001,90045.0,90044.0,0.88466347]
[1765147848291,0.86870001,90045.0,90044.0,0.86366347]
[1765147848633,0.86970001,90045.0,90044.0,0.88666347]
[1765147848956,0.86970001,90045.0,90044.0,0.87566347]
[1765147849079,0.86970001,90045.0,90044.0,0.88666347]
[1765147849718,0.58446001,90045.0,90044.0,0.88666347]
[1765147850900,0.58446001,90045.0,90044.0,0.86447347]
[1765147855204,0.02267,90085.0,90084.0,0.28453799]
[1765147856078,0.05145,90085.0,90084.0,0.28453799]
[1765147856381,0.11961279,90085.0,90084.0,0.06252299]
[1765147856543,0.07404279,90085.0,90084.0,0.06252299]
[1765147856877,0.05184279,90085.0,90084.0,0.06252299]
[1765147857856,0.00039279,90085.0,90084.0,0.06252299]
[1765147858515,0.00039279,90085.0,90084.0,0.15273299]
[1765147858733,0.00039279,90085.0,90084.0,0.09716299]
[1765147858944,0.00039279,90085.0,90084.0,0.06252299]
[1765147859474,0.00039279,90085.0,90084.0,0.20982299]
[1765147859667,0.00039279,90085.0,90084.0,0.21082299]
[1765147859875,0.01039279,90085.0,90084.0,0.21082299]
[1765147861752,0.10155279,90085.0,90084.0,0.21082299]
[1765147862198,0.04777279,90085.0,90084.0,0.21082299]
[1765147862612,0.01039279,90085.0,90084.0,0.21082299]
[1765147867673,0.01039279,90085.0,90084.0,0.15534586]
[1765147868038,0.01039279,90085.0,90084.0,0.16651331]
[1765147869054,0.01039279,90085.0,90084.0,0.06513586]
[1765147869267,0.10155279,90085.0,90084.0,0.001]
[1765147869493,0.04777279,90085.0,90084.0,0.001]
[1765147869696,0.01039279,90085.0,90084.0,0.001]
[1765147870439,0.10155279,90085.0,90084.0,0.001]
[1765147870841,0.34576533,90085.0,90084.0,0.001]
[1765147872073,0.95752333,90085.0,90084.0,0.001]
[1765147872272,0.95752333,90085.0,90063.0,0.01110333]
[1765147872273,0.01110296,90066.0,90063.0,0.01110333]
[1765147872473,0.01110309,90065.0,90062.0,0.01110346]
[1765147872741,0.01110333,90063.0,90059.0,0.01110383]
[1765147872942,0.2331727,90062.0,90055.0,0.25685048]
[1765147873163,0.01110358,90061.0,90057.0,0.01110407]
[1765147873578,0.0111037,90060.0,90056.0,0.0111042]
[1765147874150,0.0111037,90060.0,90057.0,0.01110407]
[1765147874347,0.0111037,90060.0,90056.0,0.0111042]
[1765147874956,0.23317835,90060.0,90056.0,0.0111042]
[1765147875213,0.01110383,90059.0,90057.0,0.013]
[1765147875873,0.01110383,90059.0,90057.0,0.008]
[1765147876417,0.01110383,90059.0,90056.0,0.0161042]
[1765147876838,0.01110383,90059.0,90056.0,0.0241042]
[1765147877044,0.01110333,90063.0,90058.0,0.01110395]
[1765147877364,0.01110296,90066.0,90060.0,0.07362669]
[1765147877365,0.01110309,90065.0,90060.0,0.07362669]
[1765147877576,0.01110309,90065.0,90061.0,0.01110358]
[1765147878165,0.259668,90068.0,90063.0,0.01110333]
[1765147878591,0.01410309,90065.0,90061.0,0.01271645]
[1765147878954,0.01410309,90065.0,90061.0,0.01371645]
[1765147879355,0.01410309,90065.0,90061.0,0.23478785]
[1765147879664,0.01110309,90065.0,90062.0,0.01110346]
[1765147880086,0.01710309,90065.0,90062.0,0.01110346]
[1765147880297,0.01110309,90065.0,90062.0,0.01110346]
[1765147880523,0.01510309,90065.0,90062.0,0.01110346]
[1765147880899,0.01110296,90066.0,90064.0,0.03604]
[1765147881106,0.01110296,90066.0,90065.0,0.01543]
[1765147881487,0.01110296,90066.0,90065.0,0.05147]
[1765147881878,0.22205153,90070.0,90065.0,0.05147]
[1765147881879,0.233154,90070.0,90065.0,0.06257309]
[1765147882085,0.0287421,90073.0,90070.0,0.01110247]
[1765147882318,0.0287421,90073.0,90069.0,0.01110259]
[1765147882319,0.25078497,90073.0,90069.0,0.01110259]
[1765147882528,0.01764,90073.0,90069.0,0.23315231]
[1765147882823,0.01764,90073.0,90071.0,0.22204525]
[1765147883825,0.02464,90073.0,90071.0,0.22204525]
[1765147884032,0.01764,90073.0,90071.0,0.22204525]
[1765147884447,0.02364,90073.0,90071.0,0.22204525]
[1765147885748,0.02364,90073.0,90072.0,0.06252299]
[1765147885970,0.02364,90073.0,90072.0,0.09856299]
[1765147886524,0.01764,90073.0,90072.0,0.09856299]
[1765147886960,0.02364,90073.0,90072.0,0.09856299]
[1765147887572,0.03364,90073.0,90072.0,0.15466299]
[1765147887905,0.016,90073.0,90072.0,0.15466299]
[1765147888269,0.016,90073.0,90072.0,0.03604]
[1765147888825,0.016,90073.0,90069.0,0.01110259]
[1765147888976,0.016,90073.0,90068.0,0.2331544]
[1765147888977,0.01110259,90069.0,90068.0,0.1473]
[1765147889334,0.06976259,90069.0,90068.0,0.1473]
[1765147889520,0.12282259,90069.0,90068.0,0.1473]
[1765147890191,0.12282259,90069.0,90068.0,0.20982299]
[1765147890393,0.10062259,90069.0,90068.0,0.20982299]
[1765147890715,0.10462259,90069.0,90068.0,0.20982299]
[1765147890860,0.10062259,90069.0,90068.0,0.20982299]
[1765147891063,0.10562259,90069.0,90068.0,0.20982299]
[1765147893184,0.10562259,90069.0,90068.0,0.1473]
[1765147893426,0.10562259,90069.0,90059.0,0.1473]
[1765147893427,0.22207417,90060.0,90059.0,0.1473]
[1765147893567,0.23320423,90050.0,90048.0,0.06252299]
[1765147893777,0.23320423,90050.0,90049.0,0.1473]
[1765147893997,0.23320423,90050.0,90049.0,0.20982299]
[1765147894206,0.32272423,90050.0,90049.0,0.1473]
[1765147894653,0.01110555,90045.0,90042.0,0.1473]
[1765147894858,0.22211363,90044.0,90043.0,0.06252299]
[1765147895075,0.06416555,90045.0,90043.0,0.06252299]
[1765147895276,0.02651,90044.0,90043.0,0.06252299]
[1765147895490,0.11603,90044.0,90043.0,0.06252299]
[1765147896176,0.06297,90044.0,90043.0,0.06252299]
[1765147896378,0.06297,90044.0,90043.0,0.06352299]
[1765147896580,0.11603,90044.0,90043.0,0.06352299]
[1765147896778,0.11603,90044.0,90043.0,0.001]
[1765147896979,0.13823,90044.0,90043.0,0.002]
[1765147897438,0.11603,90044.0,90043.0,0.002]
[1765147898500,0.13823,90044.0,90043.0,0.002]
[1765147898698,0.2221161,90043.0,90042.0,0.00011817]
[1765147898919,0.3338361,90043.0,90042.0,0.00011817]
[1765147899474,0.11172,90043.0,90042.0,0.00011817]
[1765147899909,0.11272,90043.0,90042.0,0.00011817]
[1765147900285,0.20359259,90043.0,90042.0,0.00011817]
[1765147900487,0.308345,90043.0,90042.0,0.00011817]
[1765147901268,0.308345,90043.0,90032.0,0.00023968]
[1765147901269,0.01110679,90035.0,90032.0,0.00023968]
[1765147901609,0.50208677,90033.0,90032.0,0.00023968]
[1765147902102,0.50208677,90033.0,90000.0,0.13982596]
[1765147902103,0.2222053,90007.0,90005.0,0.03336716]
[1765147902297,0.01764,90006.0,90005.0,0.00011809]
[1765147902510,0.07167,90006.0,90005.0,0.00011809]
[1765147902713,0.10632,90006.0,90005.0,0.00011809]
[1765147903694,0.10832,90006.0,90005.0,0.00011809]
[1765147904732,0.002,90006.0,90005.0,0.06425395]
[1765147904942,0.002,90006.0,90005.0,0.15090395]
[1765147905178,0.002,90006.0,90005.0,0.48493258]
[1765147905470,0.002,90006.0,90005.0,0.47390395]
[1765147906029,0.002,90006.0,90005.0,0.47490395]
[1765147906240,0.01764,90022.0,90019.0,0.01110876]
[1765147906440,0.01764,90022.0,90021.0,0.01725]
[1765147907156,0.01764,90022.0,90021.0,0.01886287]
[1765147907359,0.05229,90022.0,90021.0,0.06413586]
[1765147907676,0.01764,90022.0,90021.0,0.06413586]